bitfinex-derivatives/quotes_BTCF0:USTF0_20230701
["timestamp","ask_amount","ask_price","bid_price","bid_amount"]
[1688214222341,0.07550822,30632.0,30631.0,0.77384716]
[1688214222533,0.07550822,30632.0,30631.0,0.77082918]
[1688214223440,0.0004897,30634.0,30633.0,0.3507]
[1688214223742,0.3513,30642.0,30633.0,1.084688]
[1688214223949,0.11761555,30644.0,30641.0,0.7138]
[1688214224140,0.08441876,30643.0,30642.0,0.05666214]
[1688214224439,0.08441876,30643.0,30642.0,0.372583]
[1688214224845,0.08441876,30643.0,30642.0,0.40966214]
[1688214225047,0.08441876,30643.0,30642.0,0.41001798]
[1688214232533,0.08981688,30644.0,30642.0,0.41001798]
[1688214232733,0.08981688,30644.0,30643.0,0.38807914]
[1688214232950,0.08441383,30644.0,30643.0,0.40801636]
[1688214234533,0.00048952,30646.0,30643.0,0.40801636]
[1688214234737,0.00048952,30646.0,30645.0,0.733381]
[1688214235049,0.08377565,30646.0,30645.0,0.733381]
[1688214235249,0.08377565,30646.0,30645.0,0.77046014]
[1688214236044,0.08377565,30646.0,30645.0,0.77081486]
[1688214236842,0.37732286,30647.0,30645.0,0.77081486]
[1688214237046,0.37732286,30647.0,30646.0,0.39007914]
[1688214237243,0.02602286,30647.0,30646.0,0.40965914]
[1688214237647,0.0654926,30649.0,30646.0,0.40965914]
[1688214237851,0.09152823,30649.0,30648.0,0.7138]
[1688214238153,0.09152823,30649.0,30648.0,0.733379]
[1688214238154,0.08472919,30649.0,30648.0,0.733379]
[1688214238344,0.09351308,30649.0,30648.0,0.77045814]
[1688214238547,0.0091097,30649.0,30648.0,0.77045814]
[1688214239144,0.0935123,30649.0,30648.0,0.77081115]
[1688214240254,0.0935123,30649.0,30648.0,0.77735115]
[1688214240444,0.08940682,30657.0,30649.0,0.00654]
[1688214240753,0.08940682,30657.0,30656.0,0.353]
[1688214241140,0.57909112,30657.0,30656.0,0.39007914]
[1688214242048,0.57909112,30657.0,30656.0,0.390429]
[1688214242367,0.8426843,30657.0,30656.0,0.00034986]
[1688214242745,0.86091399,30657.0,30656.0,0.00034986]
[1688214243053,0.8426843,30657.0,30653.0,0.35178928]
[1688214243245,0.4896843,30657.0,30654.0,0.01884945]
[1688214243441,0.353,30655.0,30654.0,0.01884945]
[1688214243647,0.43739726,30655.0,30654.0,0.03707914]
[1688214244161,0.43739726,30655.0,30654.0,0.05700462]
[1688214244455,0.43739726,30655.0,30654.0,0.39042962]
[1688214244652,0.08439726,30655.0,30654.0,0.77080462]
[1688214246653,0.3513,30658.0,30654.0,0.77080462]
[1688214246855,0.3513,30658.0,30657.0,0.3515]
[1688214247251,0.3513,30658.0,30657.0,0.38930269]
[1688214247654,0.3513,30658.0,30657.0,0.3515]
[1688214248156,0.36217291,30658.0,30657.0,0.35184914]
[1688214248348,0.36217291,30658.0,30657.0,0.38892828]
[1688214248550,0.01087291,30658.0,30657.0,0.38892828]
[1688214248863,0.01087291,30658.0,30657.0,0.40850128]
[1688214249050,0.01087291,30658.0,30657.0,0.38892828]
[1688214251962,0.01087291,30658.0,30657.0,0.40850128]
[1688214252953,0.01087291,30658.0,30657.0,0.38892828]
[1688214254266,0.09526601,30658.0,30657.0,0.38879323]
[1688214255159,0.09526601,30658.0,30657.0,0.37056354]
[1688214255364,0.09526601,30658.0,30657.0,0.38879323]
[1688214256052,0.09526601,30658.0,30657.0,0.35171409]
[1688214256252,0.09526601,30658.0,30657.0,0.36994378]
[1688214256464,0.09526601,30658.0,30657.0,0.35171409]
[1688214257656,0.09526601,30658.0,30657.0,0.38879323]
[1688214261570,0.01087291,30658.0,30657.0,0.35171409]
[1688214263870,0.01087291,30658.0,30657.0,0.37056354]
[1688214264373,0.01087291,30658.0,30657.0,0.38879323]
[1688214264765,0.01087291,30658.0,30657.0,0.35171409]
[1688214266468,0.09526634,30658.0,30657.0,0.35171409]
[1688214266973,0.09526634,30658.0,30657.0,0.35159597]
[1688214267765,0.11349603,30658.0,30657.0,0.35159597]
[1688214269474,0.09526634,30658.0,30657.0,0.35159597]
[1688214271066,0.11349603,30658.0,30657.0,0.35159597]
[1688214274986,0.11349603,30658.0,30657.0,0.33083661]
[1688214276195,0.11349603,30658.0,30657.0,0.30441584]
[1688214278097,0.09526634,30658.0,30657.0,0.30441584]
[1688214278997,0.11349603,30658.0,30657.0,0.30441584]
[1688214279687,0.09526634,30658.0,30657.0,0.30441584]
[1688214280299,0.11349603,30658.0,30657.0,0.30441584]
[1688214280491,0.09526634,30658.0,30657.0,0.30441584]
[1688214281494,0.09526634,30658.0,30657.0,0.32264553]
[1688214281885,0.09526634,30658.0,30657.0,0.30441584]
[1688214283193,0.09526634,30658.0,30657.0,0.32264553]
[1688214283895,0.09526634,30658.0,30657.0,0.32326529]
[1688214284994,0.09526634,30658.0,30657.0,0.34149498]
[1688214288401,0.09526634,30658.0,30657.0,0.32326529]
[1688214289005,0.09526634,30658.0,30657.0,0.65586529]
[1688214289303,0.09526634,30658.0,30657.0,0.67409498]
[1688214290403,0.09526634,30658.0,30657.0,0.6738625]
[1688214290793,0.09526634,30658.0,30657.0,0.65563281]
[1688214291002,0.09526634,30658.0,30657.0,0.6738625]
[1688214292997,0.09526634,30658.0,30657.0,0.65563281]
[1688214293597,0.09526634,30658.0,30657.0,0.6738625]
[1688214298700,0.09526634,30658.0,30657.0,0.65563281]
[1688214299304,0.09526634,30658.0,30657.0,0.6738625]
[1688214301211,0.09526634,30658.0,30657.0,0.65563281]
[1688214301599,0.09526634,30658.0,30657.0,0.6738625]
[1688214302808,0.09526634,30658.0,30657.0,0.67367396]
[1688214305203,0.09526634,30658.0,30657.0,0.63659482]
[1688214305400,0.09526634,30658.0,30657.0,0.65544427]
[1688214305912,0.09526634,30658.0,30657.0,0.67367396]
[1688214306707,0.09526634,30658.0,30657.0,0.65544427]
[1688214306910,0.09526634,30658.0,30657.0,0.67367396]
[1688214307112,0.09526634,30658.0,30657.0,0.65544427]
[1688214307319,0.09526634,30658.0,30657.0,0.67367396]
[1688214309318,0.09526634,30658.0,30657.0,0.65544427]
[1688214309712,0.09526634,30658.0,30657.0,0.67367396]
[1688214309923,0.09526634,30658.0,30657.0,0.65544427]
[1688214310216,0.09526634,30658.0,30657.0,0.67367396]
[1688214310612,0.09526634,30658.0,30657.0,0.65544427]
[1688214311219,0.09526634,30658.0,30657.0,0.63659482]
[1688214311610,0.11349603,30658.0,30657.0,0.63659482]
[1688214311810,0.11349603,30658.0,30653.0,0.36128928]
[1688214312017,0.38879343,30657.0,30653.0,0.36128928]
[1688214312219,0.10262312,30656.0,30653.0,0.36128928]
[1688214312413,0.08439343,30655.0,30653.0,0.36128928]
[1688214312610,0.08439343,30654.0,30653.0,0.36128928]
[1688214312808,0.09550918,30654.0,30653.0,0.71428928]
[1688214313509,0.09550918,30654.0,30653.0,0.73313873]
[1688214313722,0.09550918,30654.0,30653.0,0.75271473]
[1688214314111,0.09550918,30654.0,30653.0,0.77135016]
[1688214314313,0.09550918,30654.0,30653.0,0.75312047]
[1688214314821,0.09550918,30654.0,30653.0,0.77135016]
[1688214315118,0.09550918,30654.0,30653.0,0.75312047]
[1688214315423,0.09550918,30654.0,30653.0,0.77135016]
[1688214315720,0.09550918,30654.0,30653.0,0.75312047]
[1688214315923,0.09550918,30654.0,30653.0,0.77135016]
[1688214316820,0.09550918,30654.0,30653.0,0.75312047]
[1688214317215,0.09550918,30654.0,30653.0,0.71469502]
[1688214317415,0.11373887,30654.0,30653.0,0.35340574]
[1688214317608,0.09550918,30654.0,30653.0,0.35340574]
[1688214318121,0.09550918,30654.0,30653.0,0.36903175]
[1688214319318,0.09550918,30654.0,30650.0,0.74202334]
[1688214319319,0.14550918,30654.0,30650.0,0.00048934]
[1688214319524,0.05,30637.0,30625.0,0.10429903]
[1688214319712,0.3608,30627.0,30626.0,0.019593]
[1688214319914,0.01822969,30627.0,30626.0,0.351]
[1688214320118,0.10267344,30627.0,30626.0,0.37096304]
[1688214320317,0.01822969,30627.0,30626.0,0.38996304]
[1688214320620,0.3608,30627.0,30626.0,0.38996304]
[1688214320822,0.3608,30627.0,30626.0,0.38981249]
[1688214321016,0.00048977,30630.0,30626.0,0.38981249]
[1688214321321,0.00048977,30630.0,30629.0,0.372591]
[1688214321716,0.00048977,30630.0,30629.0,0.40967014]
[1688214322121,0.00048977,30630.0,30629.0,0.41004828]
[1688214323011,0.409772,30633.0,30630.0,0.03707914]
[1688214323208,0.409772,30633.0,30631.0,0.01959]
[1688214323209,0.019589,30632.0,30631.0,0.01959]
[1688214323413,0.019589,30632.0,30631.0,0.37259]
[1688214323723,0.019589,30632.0,30631.0,0.40609841]
[1688214323921,0.019589,30632.0,30631.0,0.38786872]
[1688214324118,0.019589,30632.0,30631.0,0.4100882]
[1688214326026,0.0004896,30635.0,30632.0,0.03707914]
[1688214326222,0.02616501,30635.0,30634.0,0.3526]
[1688214326524,0.0004896,30635.0,30634.0,0.732988]
[1688214326724,0.0004896,30635.0,30634.0,0.77006714]
[1688214327026,0.0004896,30635.0,30634.0,0.77048484]
[1688214327220,0.0004896,30635.0,30634.0,0.40968484]
[1688214328322,0.0004896,30635.0,30634.0,0.41487197]
[1688214329316,0.0004896,30635.0,30634.0,0.36123197]
[1688214332125,0.0004896,30635.0,30634.0,0.30456483]
[1688214332126,0.3808766,30635.0,30634.0,0.30456483]
[1688214332323,0.3808766,30635.0,30634.0,0.35860483]
[1688214332723,0.3808766,30635.0,30630.0,0.35198966]
[1688214332724,0.75000629,30635.0,30630.0,0.35198966]
[1688214332922,0.7138,30631.0,30630.0,0.27211488]
[1688214333122,0.75161969,30631.0,30630.0,1e-08]
[1688214333329,0.75161969,30631.0,30626.0,0.019593]
[1688214333330,0.75161969,30631.0,30627.0,0.3513]
[1688214333523,0.7114,30628.0,30627.0,0.3513]
[1688214333724,0.74922169,30628.0,30627.0,0.3513]
[1688214334425,0.74922169,30628.0,30627.0,0.370892]
[1688214334726,0.75052169,30628.0,30627.0,0.372592]
[1688214335122,0.732292,30628.0,30627.0,0.372592]
[1688214335632,0.75052169,30628.0,30627.0,0.372592]
[1688214336024,0.732292,30628.0,30627.0,0.372592]
[1688214336422,0.732292,30628.0,30627.0,0.39144145]
[1688214336823,0.8049172,30628.0,30627.0,0.372592]
[1688214337132,0.75052169,30628.0,30627.0,0.372592]
[1688214339230,0.732292,30628.0,30627.0,0.39144145]
[1688214340438,0.732292,30628.0,30627.0,0.39904215]
[1688214341135,0.732292,30628.0,30627.0,0.39948655]
[1688214342037,0.75052169,30628.0,30627.0,0.39948655]
[1688214342236,0.732292,30628.0,30627.0,0.39948655]
[1688214342631,0.75052169,30628.0,30627.0,0.39948655]
[1688214342840,0.77671896,30628.0,30627.0,0.3806371]
[1688214343240,0.75848927,30628.0,30627.0,0.3373771]
[1688214343442,0.75848927,30628.0,30627.0,0.37581855]
[1688214343735,0.77671896,30628.0,30627.0,0.3569691]
[1688214343940,0.75848927,30628.0,30627.0,0.3569691]
[1688214344329,0.77671896,30628.0,30627.0,0.3569691]
[1688214344530,0.39768927,30628.0,30627.0,0.3569691]
[1688214344738,0.39768927,30628.0,30627.0,0.37581855]
[1688214346740,0.39878927,30628.0,30627.0,0.41771624]
[1688214347844,0.39878927,30628.0,30627.0,0.76028655]
[1688214348445,0.39878927,30628.0,30627.0,0.77851624]
[1688214348942,0.37919727,30628.0,30627.0,0.77851624]
[1688214349333,0.02619727,30628.0,30627.0,0.77851624]
[1688214349848,0.37019,30631.0,30627.0,0.77851624]
[1688214350044,0.37019,30631.0,30630.0,0.351]
[1688214350245,0.37019,30631.0,30630.0,0.370591]
[1688214350545,0.37019,30631.0,30630.0,0.37818493]
[1688214351135,0.37019,30631.0,30630.0,0.37862779]
[1688214353355,0.39589445,30631.0,30630.0,0.35903679]
[1688214353547,0.39589445,30631.0,30630.0,0.00803679]
[1688214353548,0.77492414,30631.0,30630.0,0.00803679]
[1688214354539,0.77492414,30631.0,30630.0,0.02762779]
[1688214354848,0.77475315,30631.0,30630.0,0.02762779]
[1688214356536,0.84073681,30631.0,30630.0,0.02762779]
[1688214359240,0.84073681,30631.0,30630.0,0.02756779]
[1688214361051,0.77475315,30631.0,30630.0,0.02756779]
[1688214362846,0.75652346,30631.0,30630.0,0.02756779]
[1688214363050,0.40609445,30631.0,30630.0,0.39771724]
[1688214363440,0.40609445,30631.0,30630.0,0.41594693]
[1688214364143,0.40609445,30631.0,30630.0,0.39771724]
[1688214364344,0.40609445,30631.0,30630.0,0.41594693]
[1688214364542,0.75799445,30631.0,30630.0,0.41764693]
[1688214364738,0.75799445,30631.0,30630.0,0.39941724]
[1688214365152,0.37149,30631.0,30630.0,0.76021724]
[1688214365340,0.37149,30631.0,30630.0,0.02756779]
[1688214365537,0.37149,30631.0,30630.0,0.00797679]
[1688214365538,0.73229,30631.0,30630.0,0.00797679]
[1688214365743,0.73229,30631.0,30627.0,0.770575]
[1688214365942,0.38039,30631.0,30630.0,0.00562015]
[1688214366142,0.7325437,30631.0,30630.0,0.00041121]
[1688214366654,0.75077339,30631.0,30630.0,0.00041121]
[1688214366855,0.77659949,30631.0,30630.0,0.00041121]
[1688214367053,1.0,30630.0,30624.0,0.02008376]
[1688214367357,0.353,30625.0,30624.0,0.02008376]
[1688214367550,0.372594,30625.0,30624.0,0.02008376]
[1688214367752,0.39082369,30625.0,30624.0,0.02008376]
[1688214367947,0.39082369,30625.0,30624.0,0.00048976]
[1688214368150,0.39082369,30625.0,30624.0,0.00087501]
[1688214368549,0.06429308,30625.0,30624.0,0.00087501]
[1688214372550,0.06429308,30625.0,30624.0,0.02046901]
[1688214372756,0.04606339,30625.0,30624.0,0.02040901]
[1688214373158,0.06429308,30625.0,30624.0,0.02040901]
[1688214373354,0.04606339,30625.0,30624.0,0.02712638]
[1688214374259,0.06429308,30625.0,30624.0,0.02712638]
[1688214376652,0.04606339,30625.0,30624.0,0.04597583]
[1688214378951,0.04606339,30625.0,30624.0,0.02712638]
[1688214379160,0.07267524,30625.0,30624.0,0.02712638]
[1688214379349,0.09090493,30625.0,30624.0,0.02712638]
[1688214379557,0.07267524,30625.0,30624.0,0.02712638]
[1688214380560,0.09090493,30625.0,30624.0,0.02712638]
[1688214380749,0.07267524,30625.0,30624.0,0.02712638]
[1688214380946,0.09090493,30625.0,30624.0,0.02712638]
[1688214381954,0.1753585,30625.0,30624.0,0.02712638]
[1688214384059,0.1753585,30625.0,30624.0,0.00753238]
[1688214388958,0.15712881,30625.0,30624.0,0.00753238]
[1688214389164,0.15712881,30625.0,30624.0,0.02712638]
[1688214389369,0.15712881,30625.0,30624.0,0.04597583]
[1688214389564,0.07267524,30625.0,30624.0,0.04597583]
[1688214390269,0.07267524,30625.0,30624.0,0.02712638]
[1688214390878,0.09090493,30625.0,30624.0,0.02712638]
[1688214391270,0.07267524,30625.0,30624.0,0.02712638]
[1688214392172,0.09090493,30625.0,30624.0,0.02712638]
[1688214392973,0.09090493,30625.0,30624.0,0.02724582]
[1688214394171,0.09090493,30625.0,30624.0,0.00765182]
[1688214396074,0.15668389,30625.0,30624.0,0.00765182]
[1688214396277,0.15668389,30625.0,30624.0,0.02724582]
[1688214396575,0.06429308,30625.0,30624.0,0.02724582]
[1688214397171,0.14874969,30625.0,30624.0,0.02724582]
[1688214398268,0.14874969,30625.0,30624.0,0.00765182]
[1688214403681,0.13052,30625.0,30624.0,0.02724682]
[1688214403979,0.14874969,30625.0,30624.0,0.02724682]
[1688214404581,0.06429308,30625.0,30624.0,0.02724682]
[1688214405373,0.14875205,30625.0,30624.0,0.02724682]
[1688214406481,0.14875205,30625.0,30624.0,0.00765182]
[1688214406673,0.14875205,30625.0,30624.0,0.02724582]
[1688214408083,0.019594,30625.0,30624.0,0.39909527]
[1688214408269,0.372594,30625.0,30624.0,0.39909527]
[1688214408476,0.45705054,30625.0,30624.0,0.39909527]
[1688214408679,0.45705054,30625.0,30624.0,0.43260368]
[1688214408884,0.45705054,30625.0,30624.0,0.41732496]
[1688214409182,0.353,30625.0,30624.0,0.41732496]
[1688214409482,0.372594,30625.0,30624.0,0.39909527]
[1688214409784,0.372594,30625.0,30624.0,0.41732496]
[1688214410276,0.45705014,30625.0,30624.0,0.41732496]
[1688214410483,0.47297983,30625.0,30624.0,0.02724582]
[1688214411375,0.45475014,30625.0,30624.0,0.02724582]
[1688214412684,0.47297983,30625.0,30624.0,0.02724582]
[1688214416296,0.47297983,30625.0,30624.0,0.01666937]
[1688214416498,0.47297983,30625.0,30624.0,0.02180339]
[1688214417194,0.47297983,30625.0,30624.0,0.02227244]
[1688214417994,0.82597983,30625.0,30624.0,0.02227244]
[1688214418296,0.82597983,30625.0,30624.0,0.00560307]
[1688214418687,0.82597983,30625.0,30624.0,0.02519707]
[1688214420999,0.82597983,30625.0,30624.0,0.01519707]
[1688214421190,0.82597983,30625.0,30624.0,0.0195136]
[1688214423794,0.82597983,30625.0,30624.0,0.00431653]
[1688214424296,0.82597983,30625.0,30624.0,0.02391053]
[1688214424797,0.82597983,30625.0,30624.0,0.00431653]
[1688214428096,0.89161314,30625.0,30624.0,0.00431653]
[1688214429013,0.89161314,30625.0,30624.0,0.02391053]
[1688214432016,0.89161314,30625.0,30624.0,0.00431653]
[1688214433507,0.89161314,30625.0,30624.0,0.02391053]
[1688214433702,0.89161314,30625.0,30624.0,0.00391053]
[1688214433909,0.01822969,30624.0,30622.0,0.048989]
[1688214434104,0.370095,30623.0,30622.0,0.048989]
[1688214434610,0.47278298,30623.0,30622.0,0.048989]
[1688214441423,0.47278298,30623.0,30622.0,0.05186057]
[1688214441619,0.77898298,30623.0,30622.0,0.00287157]
[1688214442021,0.77898298,30623.0,30622.0,0.00327477]
[1688214442221,0.01822969,30622.0,30619.0,0.05631863]
[1688214442422,0.372598,30620.0,30619.0,0.05631863]
[1688214442829,0.39082769,30620.0,30619.0,0.05631863]
[1688214443125,0.39082769,30620.0,30619.0,0.05670601]
[1688214445121,0.39082769,30620.0,30619.0,0.04584601]
[1688214445729,0.353,30620.0,30619.0,0.04584601]
[1688214446327,0.37122969,30620.0,30619.0,0.04584601]
[1688214446722,0.39082669,30620.0,30619.0,0.04584601]
[1688214447920,0.39082669,30620.0,30619.0,0.01924601]
[1688214448127,0.01822969,30619.0,30618.0,0.019598]
[1688214448424,0.38842769,30619.0,30618.0,0.00890628]
[1688214448627,0.69302769,30619.0,30616.0,0.05928588]
[1688214448822,0.370499,30617.0,30616.0,0.05928588]
[1688214449330,0.38872869,30617.0,30616.0,0.05928588]
[1688214451231,0.38872869,30617.0,30616.0,0.05969452]
[1688214451616,0.38872869,30617.0,30616.0,0.00089852]
[1688214451822,0.01822969,30616.0,30615.0,0.36280737]
[1688214452032,0.03782969,30616.0,30615.0,0.36280737]
[1688214454235,0.7057,30615.0,30613.0,0.700606]
[1688214454431,0.38853169,30614.0,30613.0,0.700606]
[1688214455125,0.38853169,30614.0,30613.0,0.65198973]
[1688214455323,0.370302,30614.0,30613.0,0.65198973]
[1688214455523,0.370302,30614.0,30613.0,0.67159173]
[1688214455725,0.38853169,30614.0,30613.0,0.00038973]
[1688214455934,0.38853169,30614.0,30613.0,0.01999073]
[1688214456636,0.38853169,30614.0,30613.0,0.02889159]
[1688214457424,0.38853169,30614.0,30613.0,0.00889159]
[1688214457629,0.38853169,30614.0,30612.0,0.00048994]
[1688214457829,0.37122969,30613.0,30609.0,1.01776294]
[1688214458033,1.0,30612.0,30611.0,0.019603]
[1688214458338,1.39083169,30612.0,30611.0,0.019603]
[1688214458631,0.372602,30612.0,30611.0,0.019603]
[1688214458832,0.353,30612.0,30611.0,0.019603]
[1688214459036,0.353,30612.0,30611.0,0.38676909]
[1688214459229,0.353,30612.0,30611.0,0.42384823]
[1688214459836,0.372602,30612.0,30611.0,0.371103]
[1688214460437,0.372602,30612.0,30611.0,0.40818214]
[1688214460634,0.372602,30612.0,30611.0,0.38995245]
[1688214461329,0.39083169,30612.0,30611.0,0.371103]
[1688214462323,0.39083169,30612.0,30611.0,0.019603]
[1688214464037,0.39083169,30612.0,30610.0,0.019603]
[1688214464345,0.39083269,30611.0,30610.0,0.019603]
[1688214466029,0.39083269,30611.0,30609.0,0.04901]
[1688214466237,0.37012969,30610.0,30609.0,0.04901]
[1688214466436,1.0,30609.0,30608.0,0.00032704]
[1688214466640,1.39083369,30609.0,30608.0,0.01993104]
[1688214467842,1.0,30608.0,30607.0,0.3608]
[1688214468040,1.0,30608.0,30607.0,0.380405]
[1688214468041,1.38843369,30608.0,30607.0,0.380405]
[1688214470751,1.38843369,30608.0,30607.0,0.019605]
[1688214474049,1.38843369,30608.0,30607.0,0.005145]
[1688214474239,1.38843369,30608.0,30607.0,0.019605]
[1688214474652,0.35,30606.0,30605.0,0.41962]
[1688214474953,0.73833569,30606.0,30605.0,0.73242]
[1688214476151,1.05023569,30606.0,30605.0,0.37162]
[1688214478251,1.0,30605.0,30604.0,0.00017652]
[1688214478555,1.38973669,30605.0,30604.0,0.01978452]
[1688214480054,1.38973669,30605.0,30604.0,0.00017652]
[1688214480755,1.0,30604.0,30603.0,0.04899852]
[1688214480942,1.731107,30604.0,30603.0,0.019608]
[1688214481259,1.74933669,30604.0,30603.0,0.019608]
[1688214481651,1.74933669,30604.0,30602.0,0.058822]
[1688214481858,0.36872969,30603.0,30602.0,0.019609]
[1688214482054,0.38833769,30603.0,30602.0,0.019609]
[1688214482455,1.0,30601.0,30600.0,0.049025]
[1688214482655,1.39083869,30601.0,30600.0,0.049025]
[1688214484354,0.372609,30601.0,30600.0,0.049025]
[1688214484665,0.372609,30601.0,30600.0,0.762825]
[1688214484666,0.353,30601.0,30600.0,0.762825]
[1688214484856,0.372608,30601.0,30600.0,0.78167445]
[1688214485160,0.372609,30601.0,30600.0,0.78167445]
[1688214485349,0.353,30601.0,30600.0,0.78167445]
[1688214485549,0.372609,30601.0,30600.0,0.78167445]
[1688214486256,0.39083869,30601.0,30600.0,0.762825]
[1688214486462,0.372609,30601.0,30600.0,0.762825]
[1688214488151,0.372609,30601.0,30600.0,0.79990414]
[1688214488356,0.353,30601.0,30600.0,0.79990414]
[1688214488550,0.372609,30601.0,30600.0,0.79990414]
[1688214488952,0.372609,30601.0,30600.0,0.78167445]
[1688214489360,0.372609,30601.0,30600.0,0.79990414]
[1688214489955,0.372609,30601.0,30600.0,0.78167445]
[1688214490958,0.372609,30601.0,30600.0,0.762825]
[1688214491159,0.372609,30601.0,30600.0,0.78167445]
[1688214491658,0.372609,30601.0,30600.0,0.79990414]
[1688214491973,0.372609,30601.0,30600.0,0.78167445]
[1688214492177,0.372609,30601.0,30600.0,0.79990414]
[1688214492670,0.372609,30601.0,30600.0,0.78167445]
[1688214493568,0.372609,30601.0,30600.0,0.81047907]
[1688214494156,0.353,30601.0,30600.0,0.81701907]
[1688214494355,0.02604551,30601.0,30600.0,0.81701907]
[1688214494874,1.0,30604.0,30600.0,0.81701907]
[1688214495168,0.371506,30606.0,30604.0,0.019607]
[1688214495354,0.371506,30606.0,30605.0,0.370907]
[1688214495355,0.3519,30606.0,30605.0,0.370907]
[1688214495550,0.3519,30606.0,30605.0,0.40798614]
[1688214495861,0.37809426,30606.0,30605.0,0.4185597]
[1688214496062,0.37809426,30606.0,30605.0,0.7393597]
[1688214496261,0.37809426,30606.0,30605.0,0.72113001]
[1688214496464,0.37809426,30606.0,30605.0,0.7393597]
[1688214497261,0.37919426,30606.0,30605.0,0.7393597]
[1688214497855,0.39880026,30606.0,30605.0,0.7393597]
[1688214498063,0.39880026,30606.0,30605.0,0.72113001]
[1688214498266,0.39880026,30606.0,30605.0,0.70228056]
[1688214500063,0.39880026,30606.0,30605.0,0.72113001]
[1688214500963,0.37919426,30606.0,30605.0,0.72113001]
[1688214501467,0.37919426,30606.0,30605.0,0.7393597]
[1688214501668,0.37919426,30606.0,30605.0,0.72113001]
[1688214502263,0.37919426,30606.0,30605.0,0.7393597]
[1688214505263,0.37919426,30606.0,30605.0,0.72113001]
[1688214505461,0.37919426,30606.0,30605.0,0.7393597]
[1688214506257,0.37919426,30606.0,30605.0,0.72113001]
[1688214506862,0.39880026,30606.0,30605.0,0.7393597]
[1688214508067,0.39880026,30606.0,30605.0,0.70228056]
[1688214509664,0.39880026,30606.0,30605.0,0.72051025]
[1688214509864,0.39880026,30606.0,30605.0,0.7393597]
[1688214510270,0.48331281,30606.0,30605.0,0.72113001]
[1688214510676,0.48331281,30606.0,30605.0,0.70228056]
[1688214511770,0.5015425,30606.0,30605.0,0.70228056]
[1688214512077,0.48331281,30606.0,30605.0,0.70228056]
[1688214513069,0.48331281,30606.0,30605.0,0.70263328]
[1688214513270,0.5015425,30606.0,30605.0,0.70263328]
[1688214513579,0.5015425,30606.0,30605.0,0.03053328]
[1688214514175,0.8226425,30606.0,30605.0,0.03053328]
[1688214521877,1.1756425,30606.0,30605.0,0.01050245]
[1688214522182,1.29338518,30606.0,30605.0,0.02783126]
[1688214522791,1.29338518,30606.0,30605.0,0.00822426]
[1688214523390,1.29338518,30606.0,30605.0,0.02783126]
[1688214524998,1.29338518,30606.0,30605.0,0.019607]
[1688214525195,1.29338518,30606.0,30605.0,0.02422381]
[1688214527190,1.27515549,30606.0,30605.0,0.02422381]
[1688214527700,1.29338518,30606.0,30605.0,0.02422381]
[1688214528203,1.29338518,30606.0,30605.0,0.00461681]
[1688214528696,1.29338518,30606.0,30605.0,0.02422381]
[1688214531303,1.29338518,30606.0,30605.0,0.00461681]
[1688214531796,1.29338518,30606.0,30605.0,0.02422381]
[1688214531995,1.27515549,30606.0,30605.0,0.02422381]
[1688214532300,0.92215549,30606.0,30605.0,0.02422381]
[1688214532490,0.80441281,30606.0,30605.0,0.02422381]
[1688214532993,0.8226425,30606.0,30605.0,0.02422381]
[1688214535698,0.8226425,30606.0,30605.0,0.02281043]
[1688214540100,0.8226425,30606.0,30605.0,0.00320343]
[1688214540410,0.8226425,30606.0,30603.0,0.409819]
[1688214540710,0.370307,30604.0,30603.0,0.409819]
[1688214540907,0.45481955,30604.0,30603.0,0.409819]
[1688214541096,0.47304924,30604.0,30603.0,0.409819]
[1688214542205,0.10411955,30604.0,30603.0,0.762819]
[1688214542411,0.55325994,30606.0,30603.0,0.762819]
[1688214542613,0.08451172,30605.0,30603.0,0.770619]
[1688214542812,0.08451172,30605.0,30604.0,0.38807914]
[1688214543108,0.43551726,30606.0,30604.0,0.40768614]
[1688214543310,0.37669426,30606.0,30605.0,0.40928614]
[1688214543507,0.46120579,30606.0,30605.0,0.40928614]
[1688214544506,0.46370579,30606.0,30605.0,0.40818614]
[1688214546609,0.48331179,30606.0,30605.0,0.40818614]
[1688214547117,0.48331179,30606.0,30605.0,0.38995645]
[1688214547915,0.50154148,30606.0,30605.0,0.371107]
[1688214548107,0.48331179,30606.0,30605.0,0.371107]
[1688214549007,0.50154148,30606.0,30605.0,0.371107]
[1688214553623,0.48331179,30606.0,30605.0,0.38995645]
[1688214554520,0.48331179,30606.0,30605.0,0.38945645]
[1688214555018,0.48331179,30606.0,30605.0,0.370607]
[1688214556222,0.50154148,30606.0,30605.0,0.370607]
[1688214556621,0.48331179,30606.0,30605.0,0.370607]
[1688214557322,0.48331179,30606.0,30605.0,0.3733788]
[1688214557525,0.48331179,30606.0,30605.0,0.39222825]
[1688214557718,0.48331179,30606.0,30605.0,0.38945645]
[1688214559517,0.50154148,30606.0,30605.0,0.370607]
[1688214559925,0.48331179,30606.0,30605.0,0.370607]
[1688214560122,0.50154148,30606.0,30605.0,0.370607]
[1688214561026,0.48331179,30606.0,30605.0,0.38945645]
[1688214562528,0.50154148,30606.0,30605.0,0.370607]
[1688214562721,0.48331179,30606.0,30605.0,0.370607]
[1688214563433,0.48331179,30606.0,30605.0,0.38945645]
[1688214563823,0.48331179,30606.0,30605.0,0.40768614]
[1688214564013,0.48331179,30606.0,30605.0,0.38945645]
[1688214564417,0.48331179,30606.0,30605.0,0.40768614]
[1688214564618,0.48331179,30606.0,30605.0,0.39145645]
[1688214565929,0.50154148,30606.0,30605.0,0.372607]
[1688214566131,0.48331179,30606.0,30605.0,0.372607]
[1688214567720,0.46370579,30606.0,30605.0,0.39083669]
[1688214567923,0.51096576,30608.0,30605.0,0.81692614]
[1688214567924,0.11774268,30608.0,30605.0,0.81692614]
[1688214568222,0.11774268,30608.0,30607.0,0.733406]
[1688214568429,0.00049011,30609.0,30607.0,0.75225545]
[1688214568632,0.00049011,30609.0,30608.0,0.77774424]
[1688214569027,0.02663743,30609.0,30608.0,0.77774424]
[1688214569230,0.00049011,30609.0,30608.0,0.81482338]
[1688214570945,0.08499366,30609.0,30608.0,0.81482338]
[1688214571136,0.08499366,30609.0,30608.0,1.07078414]
[1688214572229,0.08499366,30609.0,30608.0,1.033705]
[1688214572825,0.08499366,30609.0,30608.0,1.07078414]
[1688214573733,0.00049011,30609.0,30608.0,1.07078414]
[1688214575427,0.08499522,30609.0,30608.0,1.07078414]
[1688214578550,0.10460122,30609.0,30608.0,1.07078414]
[1688214578728,0.10460122,30609.0,30608.0,1.033705]
[1688214580244,0.10460122,30609.0,30608.0,1.05255445]
[1688214580540,0.10460122,30609.0,30608.0,1.07078414]
[1688214580735,0.10460122,30609.0,30608.0,1.05255445]
[1688214580936,0.10460122,30609.0,30608.0,1.07078414]
[1688214581138,0.10460122,30609.0,30608.0,1.05255445]
[1688214581532,0.10460122,30609.0,30608.0,1.07078414]